Cogmind - Beta 13 @@@ ROGUE MODE // 2024.03.02 @ 11:56:56 Player: ktur Result: Destroyed by JZ-5PH(R) with Subdweller Laser Performance ------------- Evolutions (0) 0 Regions Visited (2) 400 Robots Destroyed (26) 130 Value Destroyed (695) 695 Prototype IDs (1) 20 Alien Tech Used (0) 0 Bonus (0) 0 TOTAL SCORE: 1245 Bonus ------- None Cogmind --------- Core Integrity 0/250 Matter 259/300 Energy 16/100 System Corruption 0% Temperature Cool (6) Movement Core (50) Location -10/Subcaves Parts ------- > --- POWER (1) -------- (None) > --- PROPULSION (2) --- (None) > --- UTILITY (2) ------ ECM Suite > --- WEAPON (2) ------- (None) > --- INVENTORY (5) ---- Makeshift System Restoration Module Subdweller Shrapnel Launcher Ripper Shrapnel Trap Peak State ------------ > --- POWER ------------ Light Nuclear Core > --- PROPULSION ------- Light Treads Light Treads > --- UTILITY ---------- Huge Storage Unit Improved Terrain Scanner > --- WEAPON ----------- Autogun Autogun > --- INVENTORY -------- Ion Engine Light Treads Light Treads Flight Unit Small Storage Unit High-capacity Matter Pod High-capacity Matter Pod ECM Suite EM Pulse Gun EM Pulse Gun Improved Medium Laser Improved Medium Laser Improved Medium Laser Improved Medium Laser Light EM Pulse Cannon Light EM Pulse Cannon Light EM Pulse Cannon Light EM Pulse Cannon Light Assault Rifle Autogun Autogun Datajack Mining Laser Shrapnel Trap [Rating: 16] Favorites ----------- Power Ion Engine Engine Ion Engine Power Core Light Nuclear Core Propulsion Light Treads Treads Light Treads Wheel Subdweller Monowheel Flight Unit Flight Unit Utility Huge Storage Unit Device Seismic Detector Storage Huge Storage Unit Protection Scrap Shield Weapon Autogun Energy Gun Small Laser Energy Cannon Light EM Pulse Cannon Ballistic Gun Autogun Launcher Subdweller Shrapnel Launcher Special Weapon Mining Laser Slashing Weapon Ripper Special Melee Weapon Datajack Build | -11 -10 -10 ------- Run | Yrd Mat Sub Slots Evolved . | . . . Power . | . . . Propulsion . | . . . Utility . | . . . Weapon . | . . . Parts Attached 58 | 7 10 41 Power 5 | 1 1 3 Engine 4 | 1 . 3 Core 1 | . 1 . Reactor . | . . . Propulsion 12 | 2 . 10 Treads 4 | 2 . 2 Leg . | . . . Wheel 6 | . . 6 Hover . | . . . Flight 2 | . . 2 Utility 9 | 2 1 6 Device 5 | 1 . 4 Storage 3 | 1 1 1 Processor . | . . . Hackware . | . . . Protection 1 | . . 1 Artifact . | . . . Weapon 32 | 2 8 22 Energy Gun 7 | 1 2 4 Energy Cannon 3 | . . 3 Ballistic Gun 14 | 1 3 10 Ballistic Cannon . | . . . Launcher 1 | . . 1 Special Weapon 4 | . 2 2 Impact Weapon . | . . . Slashing Weapon 2 | . . 2 Piercing Weapon . | . . . Special Melee Weapon 1 | . 1 . Unidentified Prototypes 1 | . 1 . Parts Lost 12 | . . 12 Power 1 | . . 1 Propulsion 5 | . . 5 Utility 2 | . . 2 Weapon 4 | . . 4 Highest Loss Streak 5 | . . 5 To Critical Strikes 1 | . . 1 Average Slot Usage (%) 84 | . 100 76 Engine 7 | . 8 7 Core 4 | . 5 4 Treads 17 | . 28 12 Wheel 5 | . . 7 Flight 1 | . . 1 Device 9 | . 14 7 Storage 10 | . 14 8 Protection 1 | . . 2 Energy Gun 6 | . 12 2 Energy Cannon 1 | . . 2 Ballistic Gun 14 | . 8 17 Special Weapon 2 | . 5 . Naked Turns 1 | . . 1 Heaviest Build 93 | 11 92 93 Greatest Support 40 | 40 40 40 Greatest Overweight (x) 4 | . 2 4 Average Overweight (x) . | . 1 . Largest Inventory Capacity 25 | 8 25 25 Average Capacity 18 | 7 23 16 Most Carried 25 | 7 24 25 Average Carried 14 | 4 14 15 Final Capacity 25 | 8 25 5 Final Carried 24 | 7 24 4 Class Distribution -------------------- 87% | Mutant 12% | Subdweller-Mutant Dominant Class ---------------- Mutant | -10/Materials Mutant | -10/Subcaves Resources | -11 -10 -10 ----------- Run | Yrd Mat Sub Matter Collected 1494 | 274 250 970 Remotely . | . . . Salvage Created 1053 | 111 327 615 Parts 64 | 10 17 37 Haulers Intercepted 1 | . 1 . Recyclers Shooed 1 | 1 . . Parts Field Recycled . | . . . Retrieved Matter . | . . . Parts Self-Destructed 7 | . . 7 Prevented . | . . . Kills | -11 -10 -10 ------- Run | Yrd Mat Sub Combat Hostiles Destroyed 18 | . 7 11 Guns 13 | . 7 6 Cannons 4 | . . 4 AOE 1 | . . 1 Classes Destroyed 10 | 2 5 3 Builder 1 | . 1 . Tunneler 4 | 3 1 . Hauler 1 | . 1 . Recycler 1 | 1 . . Operator 1 | . 1 . Swarmer 3 | . 3 . Grunt 6 | . 4 2 Sentry 1 | . . 1 Artisan 2 | . . 2 Subdweller 8 | . . 8 Best Kill Streak 6 | 3 6 2 Combat Bots Only 6 | . 6 2 Max Kills in Single Turn 1 | 1 1 1 Gunslinging . | . . . Exploded 1 | . . 1 Melee . | . . . Uniques/NPCs Destroyed . | . . . Combat | -11 -10 -10 -------- Run | Yrd Mat Sub Hostile Shots Fired 110 | . 29 81 Missed 26 | . 4 22 Damage Taken 1910 | . 329 1581 Core 261 | . 48 213 Absorbed by Shields . | . . . Core Remaining (%) 100 | 100 . . Volleys Fired 159 | 12 52 95 Largest 2 | 2 2 2 Hottest 136 | 60 100 136 Shots Fired 271 | 24 82 165 Gun 204 | 24 60 120 Cannon 41 | . . 41 Launcher 2 | . . 2 Special 24 | . 22 2 Kinetic 132 | 12 30 90 Thermal 125 | 12 52 61 Explosive . | . . . Electromagnetic 14 | . . 14 Robot Hit Streak 28 | 9 17 28 Robot Miss Streak 2 | 1 2 1 Penetration Max . | . . . Secondary Targets . | . . . Shots Hit Robots 161 | 19 48 94 Core Hits 51 | 7 18 26 Critical Kills . | . . . Critical Parts Destroyed . | . . . Critical Strikes 2 | . 1 1 Burn 2 | . 1 1 Melee Attacks 7 | . . 7 Impact . | . . . Slashing 7 | . . 7 Piercing . | . . . Sneak Attacks . | . . . Combat Hostiles . | . . . Follow-up Attacks . | . . . Damage Inflicted 2677 | 170 592 1915 Guns 1895 | 170 517 1208 Cannons 533 | . . 533 Explosions 174 | . . 174 Melee . | . . . Ramming 27 | . 27 . Kinetic 1476 | 55 249 1172 Thermal 995 | 115 316 564 Explosive . | . . . Electromagnetic 179 | . . 179 Impact . | . . . Slashing . | . . . Piercing . | . . . Highest Corruption . | . . . Average Corruption . | . . . Corruption Purged . | . . . Corruption Blocked . | . . . Overload Shots . | . . . Overflow Damage . | . . . Projectiles . | . . . Explosions . | . . . Melee . | . . . Knockbacks . | . . . Impact . | . . . Kinetic . | . . . Secondary . | . . . Self-Inflicted Damage 42 | . . 42 Shots 2 | . . 2 Rammed 2 | . 2 . Targets Rammed 2 | . 2 . Kicked . | . . . Crushed . | . . . Highest Temperature 247 | 40 247 56 Average Temperature 42 | 17 54 18 Received Heat Transfer 363 | . 159 204 Effects 3 | . 3 . Energy Bleed 3 | . 3 . Siege Activations . | . . . Robots Corrupted . | . . . Combat Hostiles . | . . . Parts Fried 1 | . . 1 Impact Corruptions . | . . . Robots Melted . | . . . Combat Hostiles . | . . . Parts Melted 5 | 1 2 2 Heat Transferred 2009 | 275 772 962 Parts Sabotaged . | . . . Parts Stolen . | . . . Parts Stripped . | . . . Power Chain Reactions . | . . . Alert | -11 -10 -10 ------- Run | Yrd Mat Sub Peak Influence 135 | 20 135 . Initial 13 | . 13 . Average 39 | 8 42 . Maximum Alert Level . | . . . Low Security (%) 100 | 100 100 . Level 1 . | . . . Level 2 . | . . . Level 3 . | . . . Level 4 . | . . . Level 5 . | . . . High Security . | . . . Max Security . | . . . Squads Dispatched 1 | . 1 . Investigation . | . . . Extermination . | . . . Reinforcement 1 | . 1 . Assault . | . . . Garrison . | . . . Intercept . | . . . Searches Triggered . | . . . Construction Impeded . | . . . Haulers Reinforced . | . . . Active Scanning Responses . | . . . Cargo Convoy Interrupts . | . . . Stealth | -11 -10 -10 --------- Run | Yrd Mat Sub Distress Signals 1 | . 1 . Communications Jammed . | . . . Distress Signals . | . . . Times Spotted 38 | . 18 20 Peak Tracking Total 7 | . 7 2 Tactical Retreats 4 | . 1 3 Traps | -11 -10 -10 ------- Run | Yrd Mat Sub Traps Triggered . | . . . Indirectly . | . . . Trap Hack Attempts 41 | . 41 . Triggered . | . . . Disarmed . | . . . Reprogrammed 6 | . 6 . Reused 3 | . 1 2 Traps Extracted . | . . . Installed 2 | . . 2 Triggered 1 | . 1 . Most Traps Carried 3 | . . 3 Machines | -11 -10 -10 ---------- Run | Yrd Mat Sub Machines Disabled 1 | . 1 . Max in Single Turn 1 | . 1 . Machines Repaired . | . . . Machines Dismantled . | . . . Machines Sabotaged . | . . . Overloaded Fab Kills . | . . . Hacking | -11 -10 -10 --------- Run | Yrd Mat Sub Machines Accessed 3 | . 3 . Terminals 3 | . 3 . Fabricators . | . . . Repair Stations . | . . . Recycling Units . | . . . Scanalyzers . | . . . Garrison Access . | . . . Total Hacks 8 | . 8 . Successful 7 | . 7 . Failed 1 | . 1 . Catastrophic . | . . . Database Lockouts . | . . . Manual 4 | . 4 . Terminals 8 | . 8 . Fabricators . | . . . Repair Stations . | . . . Recycling Units . | . . . Scanalyzers . | . . . Garrison Access . | . . . Terminal Hacks 5 | . 5 . Robot Analysis 3 | . 3 . Locate Traps 2 | . 2 . Fabricator Hacks . | . . . Repair Station Hacks . | . . . Recycling Unit Hacks . | . . . Scanalyzer . | . . . Garrison Access Hacks . | . . . Unauthorized Hacks 2 | . 2 . Terminals 2 | . 2 . Botnet 2 | . 2 . Fabricators . | . . . Repair Stations . | . . . Recycling Units . | . . . Scanalyzers . | . . . Garrison Access . | . . . Data Cores Recovered 1 | . 1 . Used . | . . . Hacking Detections 3 | . 3 . Full Trace Events . | . . . Feedback Events . | . . . Feedback Blocked . | . . . Robot Schematics Acquired . | . . . Robots Built . | . . . Authchips . | . . . Time . | . . . Total Robot Build Rating . | . . . Part Schematics Acquired . | . . . Parts Built . | . . . Authchips . | . . . Time . | . . . Total Part Build Rating . | . . . Parts Repaired . | . . . Time . | . . . Parts Recycled . | . . . Recycled Matter . | . . . Retrieved Matter . | . . . Retrieved Components . | . . . Parts Scanalyzed . | . . . Part Schematics Acquired . | . . . Parts Damaged . | . . . Bothacking | -11 -10 -10 ------------ Run | Yrd Mat Sub Used RIF Installer . | . . . Robots Hacked . | . . . Non-combat . | . . . Combat . | . . . Robot Hacks Applied . | . . . Relay Couplers Released . | . . . Fabnet Peak Effective % . | . . . Robots Rewired . | . . . Allies Hacked . | . . . Hacks Repelled . | . . . Allies | -11 -10 -10 -------- Run | Yrd Mat Sub Total Allies . | . . . Largest Group . | . . . Highest-Rated Group . | . . . Highest-Rated Ally . | . . . Total Orders . | . . . Ally Attacks . | . . . Total Damage . | . . . Kills . | . . . Allies Corrupted . | . . . Allies Melted . | . . . Intel | -11 -10 -10 ------- Run | Yrd Mat Sub Robot Analysis Total 3 | . 3 . Derelict Logs Recovered . | . . . Drone Launches . | . . . Drone Recoveries . | . . . Exploration | -11 -10 -10 ------------- Run | Yrd Mat Sub Turns Passed 4554 | 148 1444 2962 Spaces Moved 2135 | 64 389 1682 Core 38 | 4 . 34 Treads 873 | 60 389 424 Legs . | . . . Wheels 523 | . . 523 Hover . | . . . Flight 701 | . . 701 Fastest Speed 40 | 50 160 40 Average Speed 173 | 153 284 148 Slowest Speed 480 | 160 320 480 Overloaded Moves . | . . . Propulsion Burnouts . | . . . Robots Hopped 2 | . . 2 Cave-ins Triggered . | . . . Exploration Rate (%) 46 | 6 71 63 Regions Visited 2 Branch Regions 1 Pre-discovered Areas . | . . . Known Exits Taken . | . . . Unknown Exits Taken 2 | 1 1 . Scrap Searched 4 | . . 4 Spaces Dug 16 | . 14 2 Terrain Destroyed 35 | . 15 20 Melee 1 | . . 1 Projectile 18 | . 15 3 AOE 16 | . . 16 Terrain Rammed . | . . . Walls Destroyed . | . . . Machines Disabled . | . . . Actions | -11 -10 -10 --------- Run | Yrd Mat Sub Total 2670 | 89 603 1978 Wait 185 | . 82 103 Move 2130 | 63 388 1679 Hop 1 | . . 1 Pick Up 46 | 7 21 18 Fast Attach 24 | 7 2 15 Attach 16 | . . 16 Detach 4 | . . 4 Swap 18 | . 8 10 Drop 35 | . 7 28 Fire 159 | 12 52 95 Melee 7 | . . 7 Ram . | . . . Kick . | . . . Crush 2 | . 2 . Escape Stasis . | . . . Rewire . | . . . Trap 43 | . 41 2 Miscellaneous . | . . . Route ------- -11/Scrapyard -10/Materials (discovered 4 exits: [*Mat] / [*Min x2] / [*Sub]) -10/Subcaves (discovered 1 exit: [*Mat]) History --------- Turn | Location | Event 17 | -11/Scrapyard | Discovered new exit (range 15) 149 | -11/Scrapyard | Entered Materials 307 | -10/Materials | Discovered new exit (range 10) 313 | -10/Materials | Build established: Mutant 815 | -10/Materials | Discovered new exit (range 10) 1215 | -10/Materials | Discovered new exit (range 16) 1586 | -10/Materials | Discovered new exit (range 3) 1593 | -10/Materials | Entered Subcaves 1595 | -10/Subcaves | Ambushed by Subdwellers from Twisted Machinery 2495 | -10/Subcaves | Ambushed by Subdweller buried in earth 2509 | -10/Subcaves | Core integrity fell below 50% 2537 | -10/Subcaves | A swath of the cavern ceiling suddenly collapsed 2543 | -10/Subcaves | Lost 5 parts (1p3n1w) 2581 | -10/Subcaves | Shifting Twisted Machinery released Sub. Machine Gun 2599 | -10/Subcaves | Shifting Twisted Machinery released Mak. System Restoration Module 3312 | -10/Subcaves | Core integrity fell below 20% 3769 | -10/Subcaves | A swath of the cavern ceiling suddenly collapsed 3790 | -10/Subcaves | Build established: Subdweller-Mutant 3905 | -10/Subcaves | Discovered new exit (range 5) 4168 | -10/Subcaves | Disturbed a concealed Subdweller 4348 | -10/Subcaves | Build established: Mutant 4555 | -10/Subcaves | Destroyed by JZ-5PH(R) with Subdweller Laser Last Messages --------------- 04173_ Critical hit (Destroy). 04173_ Autogun destroyed. 04180_ ZO-4F4(R) destroyed. 04181_ Acquired 13 matter. 04259_ Acquired 2 matter. 04265_ Acquired 8 matter. 04296_ Sub. Monowheel shoots sparks and powers down. 04299_ Dropped Broken Sub. Monowheel. 04301_ Acquired Mak. Power Source. 04302_ Acquired 10 matter. 04304_ Dropped Sub. Beam Cannon. 04305_ Dropped Imp. Medium Laser. 04305_ Dropped Ion Engine. 04306_ Dropped Sub. Monowheel. 04323_ Acquired Ripper. 04330_ Acquired 14 matter. 04348_ Dropped Mak. Power Source. 04370_ Acquired ECM Suite. 04456_ T9-EVG(R): "WEHOME!" 04520_ Flight Unit destroyed. Map ----- +----------------------------------------------------+ | ?????## #??# #???## #?????????????? | | ????## ##?## #????## #?????????????? | | ????# ##### ##??????# ####?????????????? | | ???## #?##????????##????????????????? | | ??## ##?????????????????????????????? | | ?## #??????????????????????????????? | | ?# ### ##??????????????????????????????? | | ?## ###?##"##???????????????????????????????? | | ??# ####??##????????????????????????????????? | | ?## ## " #????????????????????????????????????? | | ?# ###" " #????????????????????????????????????? | | ?# ##?#"" "#????????????????????????????????????? | | ?## #?##" ##????????????????????????????????????? | | ?# #??#" ##????????????????????????????????????? | | ?# #??#" "#????????????????????????????????????? | | ?## ####" ##???????????????????????????????????? | | ## " " " "##??????????????????????????????????? | | # "|[""""" ""#??????????????????????????????????? | | #"&]""""" "##??????????????????????????????????? | | #= *##"#" ##???????????????????????????????????? | | ##&&#########????????????????????????????????????? | | ?# " ## #???????????????????????????????????????? | | ?# "" ##??????????######???????????????????????? | | ?# # #########??## ########????????????????? | | ## #### # ""#?## R # #????????????????? | | # #? #?# ##R@ #????????????????? | | # ##? #?# ##????????????????? | | # #?## # #?#### #?????????????????? | | # #??###### #????## ###?????????????????? | | ## #?????## #?##### ###???????????????????? | | ## ##???## ### ## ##?????????????????????? | | # #?###"" ## #??????????????????????? | | ## ####""" ## ##??????????????????????? | | ## " ######???????????????????????? | | # #"" # #????????????????????????????? | | ## "####### #????????????????????????????? | | # ##???## ##????????????????????????????? | | #"" ##???# ####?????????????????????????????? | | ## ##### #????????????????????????????????? | | ?# ### #????????????????????????????????? | | ?# ###?# ##????????????????????????????????? | | ?####???### ##?????????????????????????????????? | | ????# ### #?????????????????????????????????? | | ???# ##?????????????????????????????????? | | ???# #?????????????????????????????????? | | ??# # ##?????????????????????????????????? | | ??## ?######??????????????????????????????????? | | ???## ??????????????????????????????????????????? | | ????##???????????????????????????????????????????? | | ?????????????????????????????????????????????????? | +----------------------------------------------------+ Best States ------------- Heat Dissipation 25 Energy Generation 15 Energy Capacity 250 Matter Stores 300 Matter Capacity 300 Sight Range 16 Terrain Scan Range 16 Terrain Scan Density 10 ECM Strength 1 Armor Coverage 800 Evasion (%) 62 Recoil Reduction 2 Item Schematics ----------------- None Robot Schematics ------------------ None Fabricated ------------ Nothing Alien Tech Used ----------------- None Achievements -------------- None Challenges ------------ None Game ------ Seed SwarmArcLattice Manual? 0 Play Time 00:23:32 Cumulative 758.9 hours Start 2024.03.02 @ 11:33:56 End 2024.03.02 @ 11:56:56 Sessions 1 Manual Loads 0 Difficulty Rogue Special Mode None Game No. 697 Rogue 697 Adventurer 0 Explorer 0 Win Type - Total 39 Types 14/4/11/2/0/0/5/2/1 Lore% 93 Gallery% 95 Achievement% 84 Wizard Run 0 Options --------- Layout 0 ASCII 0 Keyboard 0 Movement Numpad Keybinds 0 Fullscreen 1 Font 18/Smallcaps Map View 76x50 Zoom Use 0% Tactical HUD 1 Map Filters NONE Filters NONE Steam 1 RUN: c8fc78a5-753f-4660-979e-e416c9eb8569